lending/lending_fUSD_20240410
["ID","MTS","AMOUNT","RATE_DAILY","PERIOD"]
[322069944,1712740236886,-500.0,0.00020751,2]
[322069945,1712740236895,-500.0,0.00020751,2]
[322069946,1712740236904,-632.6348006,0.00020751,2]
[322069947,1712740236913,-500.0,0.00020751,2]
[322069948,1712740236922,-500.0,0.00020751,2]
[322069949,1712740236931,-500.0,0.00020751,2]
[322069950,1712740236940,-500.0,0.00020751,2]
[322069951,1712740236948,-500.0,0.00020751,2]
[322069952,1712740236957,-500.0,0.00020751,2]
[322069953,1712740236966,-500.0,0.00020751,2]
[322069954,1712740236975,-500.0,0.00020751,2]
[322069955,1712740236985,-500.0,0.00020751,2]
[322069956,1712740236994,-500.0,0.00020751,2]
[322069957,1712740237003,-500.0,0.00020751,2]
[322069958,1712740237013,-500.0,0.00020751,2]
[322069959,1712740237022,-500.0,0.00020751,2]
[322069960,1712740237030,-500.0,0.00020751,2]
[322069961,1712740237040,-500.0,0.00020751,2]
[322069962,1712740237048,-355.0,0.000208,2]
[322069963,1712740237058,-2054.98486913,0.000208,2]
[322069964,1712740237067,-173.15760461,0.000208,2]
[322069965,1712740237078,-2054.9848691,0.00020809,2]
[322069966,1712740237087,-2054.9848691,0.00020818,2]
[322069967,1712740237096,-500.0,0.00020821,2]
[322069968,1712740237105,-500.0,0.00020821,2]
[322069969,1712740237114,-500.0,0.00020821,2]
[322069970,1712740237124,-500.0,0.00020821,2]
[322069971,1712740237133,-500.0,0.00020821,2]
[322069972,1712740237142,-501.87,0.00020821,2]
[322069973,1712740237153,-500.0,0.00020821,2]
[322069974,1712740237162,-500.0,0.00020821,2]
[322069975,1712740237171,-500.0,0.00020821,2]
[322069976,1712740237180,-500.0,0.00020821,2]
[322069977,1712740237189,-500.0,0.00020821,2]
[322069978,1712740237198,-500.0,0.00020821,2]
[322069979,1712740237208,-500.0,0.00020821,2]
[322069980,1712740237217,-500.0,0.00020821,2]
[322069981,1712740237226,-500.0,0.00020821,2]
[322069982,1712740237235,-500.0,0.00020821,2]
[322069983,1712740237246,-500.0,0.00020821,2]
[322069984,1712740237257,-500.0,0.00020821,2]
[322069985,1712740237267,-500.0,0.00020821,2]
[322069986,1712740237277,-500.0,0.00020821,2]
[322069987,1712740237286,-159.90628111,0.00020821,2]
[322069988,1712740237295,-500.0,0.00020821,2]
[322069989,1712740237304,-500.0,0.00020821,2]
[322069990,1712740237313,-500.0,0.00020821,2]
[322069991,1712740237322,-500.0,0.00020821,2]
[322069992,1712740237331,-1028.3,0.00020821,2]
[322069993,1712740237340,-500.0,0.00020821,2]
[322069994,1712740237349,-536.2,0.00020821,2]
[322069995,1712740237358,-771.86,0.00020821,2]
[322069996,1712740237368,-648.70260895,0.00020821,2]
[322069997,1712740237377,-500.55,0.00020821,2]
[322069998,1712740237388,-500.0,0.00020821,2]
[322069999,1712740237399,-252.31730134,0.00020821,2]
[322070000,1712740237410,-500.0,0.00020821,2]
[322070001,1712740237419,-500.0,0.00020821,2]
[322070002,1712740237430,-500.0,0.00020821,2]
[322070003,1712740237441,-500.0,0.00020821,2]
[322070004,1712740237451,-500.0,0.00020821,2]
[322070005,1712740237460,-500.0,0.00020821,2]
[322070006,1712740237471,-500.0,0.00020823,2]
[322070007,1712740237480,-500.0,0.00020823,2]
[322070008,1712740237489,-500.0,0.00020823,2]
[322070009,1712740237499,-500.0,0.00020823,2]
[322070010,1712740237508,-500.0,0.00020824,2]
[322070011,1712740237518,-500.0,0.00020824,2]
[322070012,1712740237528,-500.0,0.00020824,2]
[322070013,1712740237537,-500.0,0.00020824,2]
[322070014,1712740237547,-500.0,0.00020824,2]
[322070015,1712740237556,-500.0,0.00020824,2]
[322070016,1712740237565,-500.0,0.00020824,2]
[322070028,1712740237740,-500.0,0.00020824,2]
[322070030,1712740237750,-1673.04,0.00020824,2]
[322070032,1712740237760,-500.0,0.00020824,2]
[322070034,1712740237771,-500.0,0.00020824,2]
[322070036,1712740237780,-2603.79,0.00020824,2]
[322070038,1712740237789,-500.0,0.00020824,2]
[322070040,1712740237799,-500.0,0.00020824,2]
[322070042,1712740237807,-500.0,0.00020824,2]
[322070044,1712740237817,-500.0,0.00020824,2]
[322070046,1712740237826,-500.0,0.00020824,2]
[322070048,1712740237835,-2054.9848691,0.00020827,2]
[322070050,1712740237844,-2054.9848691,0.00020836,2]
[322070052,1712740237853,-2054.9848691,0.00020845,2]
[322070054,1712740237862,-173.15760461,0.0002085,2]
[322070056,1712740237871,-2054.9848691,0.00020855,2]
[322070058,1712740237881,-2054.9848691,0.00020864,2]
[322070060,1712740237890,-2054.9848691,0.00020873,2]
[322070062,1712740237899,-2054.9848691,0.00020882,2]
[322070064,1712740237908,-2054.9848691,0.00020891,2]
[322070066,1712740237917,-156.11749298,0.00020898,2]
[322070068,1712740237926,-155.0,0.00020898,2]
[322070070,1712740237935,-155.0,0.00020898,2]
[322070072,1712740237945,-463.19460787,0.00020898,2]
[322070074,1712740237954,-178.23121329,0.00020898,2]
[322070076,1712740237964,-155.55500804,0.00020898,2]
[322070078,1712740237973,-203.71648401,0.00020898,2]
[322070080,1712740237982,-1324.6513758,0.00020898,2]
[322070083,1712740237992,-170.90699347,0.00020898,2]
[322070085,1712740238001,-155.65337844,0.00020898,2]
[322070087,1712740238011,-306.11232947,0.00020898,2]
[322070089,1712740238021,-207.04770003,0.00020898,2]
[322070091,1712740238030,-155.0,0.00020898,2]
[322070093,1712740238039,-155.67813641,0.00020898,2]
[322070095,1712740238048,-375.77516328,0.00020898,2]
[322070097,1712740238058,-198.21483233,0.00020898,2]
[322070099,1712740238067,-161.32143593,0.00020898,2]
[322070101,1712740238077,-175.18313507,0.00020898,2]
[322070103,1712740238087,-160.93170583,0.00020898,2]
[322070105,1712740238096,-704.64333317,0.00020898,2]
[322070107,1712740238106,-156.0970453,0.00020898,2]
[322070109,1712740238115,-554.25398322,0.00020898,2]
[322070110,1712740238124,-155.0,0.00020898,2]
[322070113,1712740238134,-20163.40939977,0.00020898,2]
[322070115,1712740238143,-5054.73385831,0.00020898,2]
[322070117,1712740238155,-745.47098604,0.00020898,2]
[322070119,1712740238165,-309.58113722,0.00020898,2]
[322070121,1712740238174,-233.3533178,0.00020898,2]
[322070123,1712740238183,-508.83319141,0.00020898,2]
[322070125,1712740238193,-185.59172627,0.00020899,2]
[322070127,1712740238202,-232.83735497,0.00020899,2]
[322070129,1712740238211,-232.897238,0.00020899,2]
[322070131,1712740238221,-175.57456382,0.00020899,2]
[322070132,1712740238230,-23977.8477858,0.00020899,2]
[322070133,1712740238239,-210.98240875,0.00020899,2]
[322070134,1712740238248,-329.93572213,0.00020899,2]
[322070135,1712740238257,-90410.80142255,0.000209,3]
[322070136,1712740238267,-160.0,0.000209,2]
[322070137,1712740238276,-2054.9848691,0.000209,2]
[322070138,1712740238285,-173.15760461,0.000209,2]
[322070139,1712740238295,-168.02058377,0.000209,2]
[322070140,1712740238305,-1704.16418295,0.000209,2]
[322070141,1712740238314,-3265.909403,0.000209,2]
[322070142,1712740238325,-3357.07417423,0.000209,2]
[322070145,1712740238334,-736.97126365,0.000209,2]
[322070147,1712740238343,-485.31993581,0.000209,2]
[322070149,1712740238352,-11544.3322131,0.00020976,4]
[322070151,1712740238361,-425.8673703,0.00020988,2]
[322070153,1712740238371,-1147.02239218,0.0002099,2]
[322070155,1712740238380,-1147.02239218,0.0002099,2]
[322070157,1712740238389,-562.84903058,0.00020997,2]
[322070159,1712740238398,-155.00001428,0.00020997,2]
[322070160,1712740238407,-262.97889526,0.00020997,2]
[322070161,1712740238416,-246.15847994,0.00020997,2]
[322070162,1712740238425,-224.23271556,0.00020997,2]
[322070163,1712740238434,-362.27924693,0.00020997,2]
[322070164,1712740238443,-157.29106844,0.00020997,2]
[322070165,1712740238452,-236.18996574,0.00020997,2]
[322070166,1712740238461,-2050.20602077,0.00020997,2]
[322070167,1712740238469,-201.7734759,0.00020997,2]
[322070168,1712740238478,-260.38068972,0.00020997,2]
[322070169,1712740238488,-200.24451877,0.00020997,2]
[322070170,1712740238497,-2238.1850999,0.00020997,2]
[322070171,1712740238506,-213.67979464,0.00020998,2]
[322070172,1712740238518,-1946.38168202,0.00020998,2]
[322070173,1712740238528,-157.15123997,0.00020998,2]
[322070174,1712740238537,-178.1899752,0.00020998,2]
[322070175,1712740238546,-159.99013655,0.00020998,2]
[322070176,1712740238555,-276.42999112,0.00020998,2]
[322070177,1712740238564,-155.1409266,0.00020998,2]
[322070178,1712740238573,-287.70192513,0.00020998,2]
[322070179,1712740238582,-161.28070995,0.00020998,2]
[322070180,1712740238591,-197.50507989,0.00020998,2]
[322070181,1712740238600,-156.54412549,0.00020998,2]
[322070182,1712740238610,-157.55729644,0.00020998,2]
[322070183,1712740238620,-156.20522947,0.00020998,2]
[322070184,1712740238630,-155.61748894,0.00020998,2]
[322070185,1712740238639,-155.50671547,0.00020998,2]
[322070186,1712740238649,-200.57035451,0.00020998,2]
[322070187,1712740238658,-204.6792925,0.00020998,2]
[322070188,1712740238667,-162.5270178,0.00020998,2]
[322070189,1712740238676,-155.0,0.00020998,2]
[322070190,1712740238685,-155.37959184,0.00020998,2]
[322070191,1712740238694,-213.0537255,0.00020998,2]
[322070192,1712740238703,-193.16416777,0.00020998,2]
[322070193,1712740238712,-155.84776155,0.00020998,2]
[322070194,1712740238722,-284.46075691,0.00020998,2]
[322070195,1712740238731,-351.65872126,0.00020998,2]
[322070196,1712740238740,-155.27245262,0.00020998,2]
[322070197,1712740238751,-188.42068347,0.00020998,2]
[322070198,1712740238761,-175.31276833,0.00020998,2]
[322070199,1712740238770,-335.28945118,0.00020998,2]
[322070200,1712740238780,-155.0,0.00020998,2]
[322070201,1712740238789,-353.02276508,0.00020999,2]
[322070202,1712740238799,-3268.10655168,0.00020999,2]
[322070203,1712740238807,-21724.93877615,0.00020999,2]
[322070204,1712740238816,-150.0,0.00020999,2]
[322070205,1712740238826,-150.0,0.00020999,2]
[322070206,1712740238835,-150.0,0.00020999,2]
[322070207,1712740238844,-150.0,0.00020999,2]
[322070208,1712740238853,-150.0,0.00020999,2]
[322070209,1712740238862,-150.0,0.00020999,2]
[322070210,1712740238871,-150.0,0.00020999,2]
[322070211,1712740238881,-150.0,0.00020999,2]
[322070212,1712740238892,-150.0,0.00020999,2]
[322070213,1712740238902,-150.0,0.00020999,2]
[322070214,1712740238911,-150.0,0.00020999,2]
[322070215,1712740238922,-150.0,0.00020999,2]
[322070216,1712740238931,-150.0,0.00020999,2]
[322070217,1712740238942,-150.0,0.00020999,2]
[322070218,1712740238953,-150.0,0.00020999,2]
[322070219,1712740238962,-150.0,0.00020999,2]
[322070220,1712740238972,-150.0,0.00020999,2]
[322070221,1712740238984,-150.0,0.00020999,2]
[322070222,1712740238994,-150.0,0.00020999,2]
[322070223,1712740239005,-150.0,0.00020999,2]
[322070224,1712740239017,-150.0,0.00020999,2]
[322070225,1712740239026,-150.0,0.00020999,2]
[322070226,1712740239035,-150.0,0.00020999,2]
[322070227,1712740239045,-224.51470148,0.00020999,2]
[322070228,1712740239057,-154.54400784,0.00020999,2]
[322070229,1712740239066,-500.0,0.00020999,2]
[322070230,1712740239076,-500.0,0.00020999,2]
[322070231,1712740239087,-412.37247893,0.00020999,2]
[322070232,1712740239096,-480.63915917,0.00020999,2]
[322070233,1712740239105,-24850.63534497,0.00021,2]
[322070234,1712740239280,-1733.56127489,0.00021,2]
[322070235,1712740239292,-2089.21810438,0.00021,2]
[322070236,1712740239312,-1894.69210266,0.00021,2]
[322070237,1712740239325,-852.40511334,0.00021,2]
[322070238,1712740239338,-4331.02072546,0.00021,2]
[322070239,1712740239353,-845.07114358,0.00021,2]
[322070242,1712740239599,-754.87851369,0.00019975,2]
[322070243,1712740239614,-847.64896932,0.00019975,2]
[322070244,1712740239626,-253.33542873,0.00019975,2]
[322070245,1712740239635,-232.7212643,0.0002016,2]
[322070246,1712740239647,-852.91410838,0.0002016,2]
[322070247,1712740239658,-345.085,0.0002016,2]
[322070248,1712740239670,-425.14253906,0.0002016,2]
[322070249,1712740239679,-3358.15141518,0.00021,2]
[322070250,1712740239691,-70131.13269762,0.00021,2]
[322070251,1712740239700,-242.90834094,0.00021,2]
[322070252,1712740239710,-12460362.70457774,0.00021,2]
[322070254,1712740239721,-5733630.99940996,0.00021,2]
[322070256,1712740239731,-714.96210186,0.00021,2]
[322070257,1712740239740,-155.0,0.00021,2]
[322070258,1712740239749,-9278695.32935748,0.00021,2]
[322070259,1712740239760,-815.08738694,0.00021,2]
[322070260,1712740239775,-2466.4214038,0.00021,2]
[322070261,1712740239786,-716.91235075,0.00021,2]
[322070262,1712740239797,-3873.53815037,0.00021,2]
[322070263,1712740239808,-1629.03229489,0.00021,2]
[322070264,1712740239819,-1514.55476768,0.00021,2]
[322070265,1712740239830,-672.81742349,0.00021,2]
[322070266,1712740239840,-942.77419458,0.00021,2]
[322070267,1712740239981,-770.88743162,0.00021,2]
[322070268,1712740239995,-677.21599131,0.00021,2]
[322070269,1712740240006,-963.33917083,0.00021,2]
[322070270,1712740240020,-1506.28635,0.00021,2]
[322070271,1712740240031,-761.27864339,0.00021,2]
[322070272,1712740240048,-138040.13349328,0.00021,2]
[322070273,1712740240060,-792.59302945,0.00021,2]
[322070274,1712740240074,-9241.75988825,0.00021,2]
[322070275,1712740240103,-838.12154448,0.00021,2]
[322070287,1712740242884,-500.0,0.00019178,2]
[322070288,1712740242893,-500.0,0.00019452,2]
[322070289,1712740242902,-500.0,0.00019726,2]
[322070290,1712740242911,-59.26431802,0.00019999,2]
[322070291,1712740242923,-440.73568198,0.00019999,2]
[322070292,1712740242932,-500.0,0.0002,2]
[322070293,1712740242941,-500.0,0.00020273,2]
[322070294,1712740242950,-500.0,0.00020273,2]
[322070295,1712740242959,-276.32247971,0.00020345,2]
[322070296,1712740242971,-817.17395889,0.00020345,2]
[322070297,1712740242983,-762.36647314,0.00020345,2]
[322070298,1712740242991,-500.0,0.00020547,2]
[322070299,1712740243000,-500.0,0.00020547,2]
[322070300,1712740243009,-500.0,0.00020821,2]
[322070301,1712740243020,-140.79826467,0.00020821,2]
[322070302,1712740243031,-359.20173533,0.00020821,2]
[322070303,1712740243040,-1178.60397158,0.00021,2]
[322070304,1712740243055,-831.12423203,0.00021,2]
[322070305,1712740243097,-23213.46198906,0.00021,2]
[322070306,1712740243153,-974.46472317,0.00021,2]
[322070307,1712740243164,-837.8243897,0.00021,2]
[322070308,1712740243175,-1474.01189071,0.00021,2]
[322070309,1712740243265,-948.1015237,0.00021,2]
[322070325,1712740245881,-886.60297093,0.00021,2]
[322070326,1712740246095,-5407.36411485,0.00021,2]
[322070327,1712740246106,-820.33296547,0.00021,2]
[322070328,1712740246149,-817.37938418,0.00021,2]
[322070329,1712740246162,-49950.30406315,0.00021,2]
[322070330,1712740246174,-54822.0000087,0.00021,2]
[322070331,1712740246185,-12107.41396601,0.00021,2]
[322070332,1712740246207,-3581.24359998,0.00021,2]
[322070336,1712740281873,16589.2348,0.00017905,2]
[322070337,1712740500318,25000.0,0.0003212,30]
[322070346,1712740799396,416.44,0.00016667,2]
[322070347,1712741203413,389.88267891,0.00031772,30]
[322070363,1712741432064,-200.0,0.00018512,2]
[322070364,1712741432075,-450.16907353,0.00018546,2]
[322070365,1712741432087,-1724.91796568,0.00018546,2]
[322070366,1712741432098,-155.0,0.00018548,2]
[322070367,1712741432108,-150.0,0.00018549,2]
[322070368,1712741432118,-348.83024503,0.00018549,2]
[322070369,1712741432128,-182.68,0.0001855,2]
[322070370,1712741432137,-8227.29483547,0.0001855,2]
[322070371,1712741432149,-1403.02516453,0.0001855,2]
[322070372,1712741432159,-539.94566539,0.0001855,2]
[322070373,1712741432179,-518.40021227,0.0001855,2]
[322070374,1712741432199,-104.28412234,0.0001855,2]
[322070375,1712741432210,-250.0,0.00018561,2]
[322070376,1712741432220,-500.0,0.00018567,2]
[322070377,1712741432230,-1852.42,0.0001857,2]
[322070378,1712741432240,-1000.0,0.00018583,2]
[322070379,1712741432255,-500.0,0.00018602,2]
[322070380,1712741432265,-134.36299723,0.00018604,2]
[322070381,1712741432316,-78.73700277,0.00018604,2]
[322070382,1712741432326,-6467.66,0.00018604,2]
[322070383,1712741432335,-499.99,0.00018604,2]
[322070384,1712741432345,-3908.98,0.00018604,2]
[322070385,1712741432354,-150.0,0.00018614,2]
[322070386,1712741432364,-289.53,0.00018704,2]
[322070387,1712741432374,-2581.32936813,0.000189,2]
[322070388,1712741432383,-416.44,0.00018931,2]
[322070389,1712741432392,-173.84,0.00019159,2]
[322070390,1712741432402,-173.84,0.00019165,2]
[322070391,1712741432411,-173.84,0.00019172,2]
[322070392,1712741432420,-173.84,0.00019179,2]
[322070394,1712741432430,-150.99,0.00019179,2]
[322070396,1712741432442,-173.84,0.00019185,2]
[322070397,1712741432451,-173.84,0.00019192,2]
[322070399,1712741432461,-173.84,0.00019199,2]
[322070400,1712741432470,-173.84,0.00019205,2]
[322070401,1712741432479,-173.84,0.00019212,2]
[322070402,1712741432488,-185.24,0.00019216,2]
[322070403,1712741432502,-173.84,0.00019219,2]
[322070404,1712741432510,-304.13109594,0.00019221,2]
[322070405,1712741432522,-173.84,0.00019225,2]
[322070406,1712741432532,-247.994,0.0001923,2]
[322070407,1712741432541,-809.08158788,0.0001923,2]
[322070408,1712741432550,-215.04952346,0.0001923,2]
[322070409,1712741432559,-230.68118798,0.0001923,2]
[322070410,1712741432570,-155.0,0.0001923,2]
[322070412,1712741432580,-329.87253319,0.00019231,2]
[322070414,1712741432590,-173.84,0.00019232,2]
[322070416,1712741432600,-4776.25084633,0.00019232,2]
[322070418,1712741432610,-486.03849486,0.00019232,2]
[322070420,1712741432620,-210.06112711,0.00019232,2]
[322070421,1712741432629,-597.96032771,0.00019232,2]
[322070423,1712741432638,-180.68788228,0.00019232,2]
[322070425,1712741432648,-1241.19748567,0.00019232,2]
[322070426,1712741432657,-155.39377956,0.00019232,2]
[322070428,1712741432666,-1969.2080462,0.00019232,2]
[322070429,1712741432675,-263.09163061,0.00019232,2]
[322070430,1712741432685,-662.07520958,0.00019232,2]
[322070431,1712741432694,-1004.84708022,0.00019232,2]
[322070432,1712741432703,-704.64333317,0.00019232,2]
[322070433,1712741432712,-779.36919387,0.00019233,2]
[322070434,1712741432721,-2353.80413367,0.00019233,2]
[322070435,1712741432730,-3808.09738745,0.00019234,2]
[322070436,1712741432741,-720.72,0.00019234,2]
[322070437,1712741432762,-551.22015101,0.00019234,2]
[322070438,1712741432774,-827.8220972,0.00019234,2]
[322070439,1712741432785,-975.90743237,0.00019234,2]
[322070440,1712741432796,-725.83836965,0.00019234,2]
[322070441,1712741432809,-709.56634056,0.00019234,2]
[322070442,1712741432822,-1231.74332176,0.00019234,2]
[322070443,1712741432831,-43.29010395,0.00019239,2]
[322070444,1712741432843,-130.54989605,0.00019239,2]
[322070445,1712741432852,-173.84,0.00019245,2]
[322070446,1712741432861,-79.11553773,0.00019252,2]
[322070447,1712741432873,-94.72446227,0.00019252,2]
[322070448,1712741432882,-173.84,0.00019259,2]
[322070449,1712741432891,-173.84,0.00019265,2]
[322070450,1712741432900,-173.84,0.00019272,2]
[322070451,1712741432909,-173.84,0.00019279,2]
[322070452,1712741432918,-173.84,0.00019285,2]
[322070453,1712741432928,-172.97848718,0.00019333,2]
[322070472,1712741438006,-327.02151282,0.00019333,2]
[322070475,1712741438016,-38.16507432,0.00019333,2]
[322070478,1712741438268,-461.83492568,0.00019333,2]
[322070479,1712741438277,-500.0,0.00019333,2]
[322070480,1712741438287,-500.0,0.00019333,2]
[322070481,1712741438297,-500.0,0.00019333,2]
[322070482,1712741438306,-500.0,0.00019333,2]
[322070483,1712741438315,-500.0,0.00019333,2]
[322070484,1712741438324,-500.0,0.00019333,2]
[322070485,1712741438334,-500.0,0.00019333,2]
[322070486,1712741438343,-500.0,0.00019333,2]
[322070487,1712741438353,-500.0,0.00019333,2]
[322070488,1712741438362,-500.0,0.00019607,2]
[322070489,1712741438371,-500.0,0.00019607,2]
[322070490,1712741438381,-500.0,0.00019607,2]
[322070492,1712741438390,-500.0,0.00019607,2]
[322070494,1712741438399,-500.0,0.00019607,2]
[322070496,1712741438408,-500.0,0.00019607,2]
[322070498,1712741438417,-500.0,0.00019607,2]
[322070500,1712741438426,-500.0,0.00019607,2]
[322070502,1712741438436,-500.0,0.00019607,2]
[322070504,1712741438448,-182.84023083,0.00019607,2]
[322070506,1712741438459,-317.15976917,0.00019607,2]
[322070508,1712741438468,-569.4742019,0.00019607,2]
[322070510,1712741438478,-500.0,0.00019881,2]
[322070511,1712741438488,-500.0,0.00019881,2]
[322070512,1712741438498,-500.0,0.00019881,2]
[322070513,1712741438508,-634.49682195,0.00019881,2]
[322070514,1712741438519,-500.0,0.00019881,2]
[322070515,1712741438528,-500.0,0.00019881,2]
[322070516,1712741438537,-500.0,0.00019881,2]
[322070517,1712741438546,-237.23853864,0.00019881,2]
[322070518,1712741438555,-500.0,0.00019881,2]
[322070519,1712741438565,-500.0,0.00019881,2]
[322070520,1712741438575,-308.12738549,0.0002,2]
[322070521,1712741438584,-133.10829613,0.0002,2]
[322070544,1712741440060,-25.28761101,0.0002,2]
[322070545,1712741440069,-624.22352962,0.0002,2]
[322070546,1712741440079,-444.19714177,0.00020002,2]
[322070547,1712741440088,-393.02045847,0.00020002,2]
[322070548,1712741440098,-500.0,0.00020002,2]
[322070549,1712741440107,-500.0,0.00020002,2]
[322070550,1712741440116,-500.0,0.00020002,2]
[322070551,1712741440125,-500.0,0.00020002,2]
[322070552,1712741440134,-500.0,0.00020002,2]
[322070553,1712741440143,-500.0,0.00020002,2]
[322070554,1712741440152,-500.0,0.00020002,2]
[322070555,1712741440161,-500.0,0.00020002,2]
[322070556,1712741440170,-500.0,0.00020002,2]
[322070557,1712741440179,-500.0,0.00020002,2]
[322070558,1712741440189,-500.0,0.00020155,2]
[322070559,1712741440198,-555.62354887,0.00020155,2]
[322070560,1712741440208,-416.75802828,0.00020155,2]
[322070561,1712741440217,-500.0,0.00020155,2]
[322070562,1712741440226,-184.56176191,0.00020155,2]
[322070563,1712741440249,-315.43823809,0.00020155,2]
[322070564,1712741440258,-356.83639654,0.00020155,2]
[322070565,1712741440267,-500.0,0.00020155,2]
[322070566,1712741440277,-500.0,0.00020155,2]
[322070567,1712741440286,-3031.32136936,0.0002017,2]
[322070568,1712741440295,-500.0,0.00020276,2]
[322070569,1712741440304,-544.40179419,0.00020276,2]
[322070570,1712741440313,-649.99076058,0.00020276,2]
[322070571,1712741440322,-500.0,0.00020276,2]
[322070572,1712741440331,-500.0,0.00020276,2]
[322070573,1712741440340,-500.0,0.00020276,2]
[322070574,1712741440349,-500.0,0.00020276,2]
[322070575,1712741440358,-500.0,0.00020276,2]
[322070576,1712741440367,-500.0,0.00020276,2]
[322070577,1712741440376,-500.0,0.00020276,2]
[322070578,1712741440385,-3031.32136936,0.00020305,2]
[322070579,1712741440394,-616.00941629,0.00020316,2]
[322070580,1712741440403,-6167.6692,0.00020329,2]
[322070581,1712741440412,-1013.52575691,0.00020349,2]
[322070582,1712741440421,-210.0,0.00020404,2]
[322070583,1712741440430,-500.0,0.00020429,2]
[322070584,1712741440440,-500.0,0.00020429,2]
[322070585,1712741440451,-500.0,0.00020429,2]
[322070586,1712741440459,-500.0,0.00020429,2]
[322070587,1712741440468,-500.0,0.00020429,2]
[322070588,1712741440477,-1821.3356163,0.00020445,2]
[322070589,1712741440488,-682.0,0.0002052,2]
[322070590,1712741440497,-151.23,0.00020536,2]
[322070591,1712741440506,-269.15452375,0.00020545,2]
[322070592,1712741440516,-500.0,0.00020545,2]
[322070593,1712741440525,-500.0,0.00020545,2]
[322070594,1712741440537,-500.0,0.00020545,2]
[322070595,1712741440547,-597.51704778,0.00020545,2]
[322070596,1712741440557,-500.0,0.00020545,2]
[322070597,1712741440567,-500.0,0.00020545,2]
[322070598,1712741440577,-500.0,0.00020545,2]
[322070599,1712741440586,-500.0,0.00020545,2]
[322070600,1712741440596,-500.0,0.00020545,2]
[322070601,1712741440605,-500.0,0.00020545,2]
[322070602,1712741440615,-500.0,0.00020545,2]
[322070603,1712741440624,-500.0,0.00020545,2]
[322070604,1712741440633,-500.0,0.00020545,2]
[322070605,1712741440643,-1394.2,0.00020545,2]
[322070606,1712741440652,-500.0,0.00020545,2]
[322070607,1712741440663,-500.0,0.00020545,2]
[322070608,1712741440673,-500.0,0.00020545,2]
[322070609,1712741440682,-500.0,0.00020545,2]
[322070610,1712741440691,-500.0,0.00020545,2]
[322070611,1712741440701,-2169.83,0.00020545,2]
[322070612,1712741440711,-500.0,0.00020545,2]
[322070613,1712741440721,-500.0,0.00020545,2]
[322070614,1712741440729,-500.0,0.00020545,2]
[322070615,1712741440738,-500.0,0.00020545,2]
[322070616,1712741440747,-500.0,0.00020545,2]
[322070617,1712741440758,-856.91,0.00020545,2]
[322070618,1712741440767,-575.42603333,0.00020545,2]
[322070619,1712741440776,-500.0,0.00020545,2]
[322070620,1712741440786,-500.0,0.00020545,2]
[322070621,1712741440796,-500.0,0.00020545,2]
[322070622,1712741440805,-500.0,0.00020545,2]
[322070623,1712741440815,-500.0,0.00020545,2]
[322070624,1712741440826,-500.0,0.00020545,2]
[322070625,1712741440835,-500.0,0.00020545,2]
[322070626,1712741440845,-500.0,0.00020545,2]
[322070627,1712741440854,-500.0,0.00020545,2]
[322070628,1712741440863,-632.21657425,0.00020545,2]
[322070629,1712741440872,-546.74,0.00020545,2]
[322070630,1712741440883,-500.0,0.00020545,2]
[322070631,1712741440892,-500.0,0.00020545,2]
[322070632,1712741440901,-500.0,0.00020545,2]
[322070633,1712741440912,-500.0,0.00020545,2]
[322070634,1712741440923,-259.85940966,0.00020545,2]
[322070635,1712741440932,-500.0,0.00020545,2]
[322070636,1712741440942,-500.0,0.00020545,2]